Cogmind - Beta 10 @@@ ROGUE MODE // 2020.09.19 @ 09:07:09 Player: ~Hale4 Result: Destroyed by D-53 Grenadier with Mini Grenade Launcher Performance ------------- Evolutions (1) 500 Regions Visited (3) 600 Robots Destroyed (40) 200 Value Destroyed (597) 597 Prototype IDs (5) 100 Alien Tech Used (0) 0 Bonus (2) 2 TOTAL SCORE: 1999 Bonus ------- High Alert Combat Kills 2 Cogmind --------- Core Integrity 0/400 Matter 186/300 Energy 92/100 System Corruption 1% Temperature Cool (0) Movement Core (550) Ox10 Location -9/Mines Parts ------- > --- POWER (1) -------- (None) > --- PROPULSION (3) --- (None) > --- UTILITY (3) ------ High-capacity Storage Unit Signal Interpreter Terrain Scanner > --- WEAPON (2) ------- (None) > --- INVENTORY (12) --- Ion Engine Aluminum Leg High-capacity Matter Pod (125) Improved Medium Laser Faulty Improved Assault Rifle Improved Assault Rifle Peak State ------------ > --- POWER ------------ Ion Engine > --- PROPULSION ------- Aluminum Leg Aluminum Leg Improved Aluminum Leg > --- UTILITY ---------- Small Storage Unit Signal Interpreter > --- WEAPON ----------- Improved EM Shotgun Heavy Assault Rifle > --- INVENTORY -------- Ion Engine Aluminum Leg High-capacity Matter Pod Assault Rifle Light Assault Rifle Grenade Launcher [Rating: 12] Favorites ----------- Power Ion Engine Engine Ion Engine Propulsion Aluminum Leg Leg Aluminum Leg Utility Signal Interpreter Device Terrain Scanner Storage Small Storage Unit Processor Signal Interpreter Weapon Light Assault Rifle Energy Gun Improved EM Shotgun Ballistic Gun Light Assault Rifle Launcher Grenade Launcher Build | -11 -10 -9 -9 ------- Run | Scr Mat Mat Min Slots Evolved 2 | . . 2 . Power . | . . . . Propulsion 1 | . . 1 . Utility 1 | . . 1 . Weapon . | . . . . Parts Attached 29 | 6 1 19 3 Power 4 | 1 . 2 1 Engine 4 | 1 . 2 1 Core . | . . . . Reactor . | . . . . Propulsion 9 | 2 . 6 1 Treads . | . . . . Leg 9 | 2 . 6 1 Wheel . | . . . . Hover . | . . . . Flight . | . . . . Utility 4 | 1 1 2 . Device 1 | . . 1 . Storage 2 | 1 . 1 . Processor 1 | . 1 . . Hackware . | . . . . Protection . | . . . . Artifact . | . . . . Weapon 12 | 2 . 9 1 Energy Gun 5 | 1 . 4 . Energy Cannon . | . . . . Ballistic Gun 4 | 1 . 3 . Ballistic Cannon . | . . . . Launcher 3 | . . 2 1 Special Weapon . | . . . . Impact Weapon . | . . . . Slashing Weapon . | . . . . Piercing Weapon . | . . . . Special Melee Weapon . | . . . . Unidentified Prototypes 1 | . . 1 . Parts Lost 14 | . . 6 8 Power 2 | . . . 2 Propulsion 7 | . . 3 4 Utility . | . . . . Weapon 5 | . . 3 2 Highest Loss Streak 8 | . . 5 8 Average Slot Usage (%) 85 | . 95 80 94 Engine 11 | . 14 11 10 Leg 26 | . 28 25 31 Device 3 | . . 1 11 Storage 11 | . 14 11 11 Processor 10 | . 9 11 11 Energy Gun 9 | . 14 10 . Ballistic Gun 9 | . 14 8 9 Launcher 2 | . . 1 9 Naked Turns . | . . . . Heaviest Build 43 | 12 12 43 43 Greatest Support 33 | 20 20 33 30 Greatest Overweight (x) 3 | . . 3 3 Average Overweight (x) . | . . . 1 Largest Inventory Capacity 12 | 6 6 12 12 Average Capacity 7 | 4 6 7 12 Most Carried 9 | 4 5 9 8 Average Carried 5 | 1 2 5 7 Final Capacity 12 | 6 6 12 12 Final Carried 9 | 1 5 9 6 Class Distribution -------------------- 60% | Mutant 39% | Scavenger-Mutant Dominant Class ---------------- Mutant | -10/Materials Mutant | -9/Materials Scavenger-Mutant | -9/Mines Resources | -11 -10 -9 -9 ----------- Run | Scr Mat Mat Min Matter Collected 685 | 210 99 250 126 Remotely . | . . . . Salvage Created 978 | . 122 798 58 Parts 75 | . 9 60 6 Haulers Intercepted 2 | . 1 1 . Recyclers Shooed . | . . . . Parts Field Recycled . | . . . . Retrieved Matter . | . . . . Parts Self-Destructed . | . . . . Prevented . | . . . . Kills | -11 -10 -9 -9 ------- Run | Scr Mat Mat Min Combat Hostiles Destroyed 25 | . 2 19 4 Guns 15 | . 2 11 2 AOE 10 | . . 8 2 Classes Destroyed 10 | . 3 6 1 Worker 5 | . . 5 . Builder 4 | . . 3 1 Hauler 2 | . 1 1 . Recycler 1 | . . 1 . Watcher 3 | . 1 2 . Swarmer 15 | . 2 10 3 Grunt 6 | . . 6 . Duelist 1 | . . 1 . Sentry 2 | . . 2 . Assembled 1 | . . . 1 Best Kill Streak 13 | . 2 13 4 Combat Bots Only 7 | . 2 7 3 Max Kills in Single Turn 3 | . 1 3 2 Gunslinging . | . . . . Exploded 2 | . . 2 1 Melee . | . . . . Uniques/NPCs Destroyed . | . . . . Combat | -11 -10 -9 -9 -------- Run | Scr Mat Mat Min Damage Taken 1777 | . 73 949 755 Core 433 | . 18 200 215 Absorbed by Shields . | . . . . Core Remaining (%) 96 | 100 92 . . Volleys Fired 97 | . 12 69 16 Largest 2 | . 2 2 2 Hottest 90 | . 70 90 50 Shots Fired 156 | . 24 114 18 Gun 147 | . 24 107 16 Cannon . | . . . . Launcher 9 | . . 7 2 Special . | . . . . Kinetic 78 | . 12 50 16 Thermal 16 | . 12 4 . Explosive 9 | . . 7 2 Electromagnetic 53 | . . 53 . Robot Hit Streak 11 | . 9 11 2 Robot Miss Streak 15 | . 3 15 3 Penetration Max . | . . . . Secondary Targets 5 | . . 5 . Max Gunslinging Chain 1 | . . 1 . Shots Hit Robots 96 | . 14 75 7 Core Hits 63 | . 5 51 7 Critical Hits 1 | . . 1 . Critical Kills 1 | . . 1 . Critical Parts Destroyed . | . . . . Melee Attacks . | . . . . Impact . | . . . . Slashing . | . . . . Piercing . | . . . . Sneak Attacks . | . . . . Combat Hostiles . | . . . . Follow-up Attacks . | . . . . Damage Inflicted 1904 | . 156 1532 216 Guns 1025 | . 156 779 90 Cannons . | . . . . Explosions 879 | . . 753 126 Melee . | . . . . Ramming . | . . . . Kinetic 363 | . 45 228 90 Thermal 292 | . 111 181 . Explosive 735 | . . 609 126 Electromagnetic 514 | . . 514 . Impact . | . . . . Slashing . | . . . . Piercing . | . . . . Highest Corruption 1 | . . 1 1 Average Corruption 1 | . . 1 1 Corruption Purged . | . . . . Effects 2 | . . 2 . Energy Discharges 1 | . . 1 . Targeting Errors 1 | . . 1 . Overload Shots . | . . . . Overflow Damage 16 | . . 16 . Projectiles . | . . . . Explosions 16 | . . 16 . Melee . | . . . . Knockbacks . | . . . . Impact . | . . . . Kinetic . | . . . . Secondary . | . . . . Self-Inflicted Damage 41 | . . 37 4 Shots 2 | . . 1 1 Rammed . | . . . . Targets Rammed . | . . . . Kicked . | . . . . Crushed . | . . . . Highest Temperature 189 | . 102 189 . Average Temperature 50 | . 39 54 . Received Heat Transfer 237 | . . 237 . Siege Activations . | . . . . Robots Corrupted . | . . . . Combat Hostiles . | . . . . Parts Fried 1 | . . 1 . Impact Corruptions . | . . . . Robots Melted . | . . . . Combat Hostiles . | . . . . Parts Melted . | . . . . Heat Transferred 694 | . 333 361 . Parts Sabotaged . | . . . . Parts Stolen . | . . . . Parts Stripped . | . . . . Power Chain Reactions 3 | . . 3 . Missiles Intercepted . | . . . . Alert | -11 -10 -9 -9 ------- Run | Scr Mat Mat Min Peak Influence 417 | . 94 417 233 Initial 158 | . . 39 158 Average 167 | . 41 195 224 Maximum Alert Level 2 | . . 2 1 Low Security (%) 52 | 100 100 48 8 Level 1 45 | . . 48 91 Level 2 2 | . . 3 . Level 3 . | . . . . Level 4 . | . . . . Level 5 . | . . . . High Security . | . . . . Max Security . | . . . . Squads Dispatched 2 | . . 2 . Investigation . | . . . . Extermination . | . . . . Reinforcement 2 | . . 2 . Assault . | . . . . Garrison . | . . . . Intercept . | . . . . Construction Impeded 1 | . . 1 . Haulers Reinforced . | . . . . Stealth | -11 -10 -9 -9 --------- Run | Scr Mat Mat Min Distress Signals 3 | . . 3 . Communications Jammed . | . . . . Distress Signals . | . . . . Times Spotted 57 | . 5 33 19 Peak Tracking Total 19 | . 3 11 19 Tactical Retreats 3 | . 1 1 1 Traps | -11 -10 -9 -9 ------- Run | Scr Mat Mat Min Traps Triggered 1 | . . 1 . Indirectly . | . . . . Trap Hack Attempts . | . . . . Triggered . | . . . . Disarmed . | . . . . Reprogrammed . | . . . . Reused . | . . . . Traps Extracted . | . . . . Installed . | . . . . Triggered . | . . . . Machines | -11 -10 -9 -9 ---------- Run | Scr Mat Mat Min Machines Disabled 1 | . . 1 . Max in Single Turn 1 | . . 1 . Machines Sabotaged . | . . . . Garrisons Compromised . | . . . . Overloaded Fab Kills . | . . . . Fab Network Shutdowns . | . . . . Hacking | -11 -10 -9 -9 --------- Run | Scr Mat Mat Min Machines Accessed 2 | . . 2 . Terminals 2 | . . 2 . Fabricators . | . . . . Repair Stations . | . . . . Recycling Units . | . . . . Scanalyzers . | . . . . Garrison Access . | . . . . Total Hacks 7 | . . 7 . Successful 5 | . . 5 . Failed 2 | . . 2 . Catastrophic . | . . . . Database Lockouts . | . . . . Manual . | . . . . Terminals 7 | . . 7 . Fabricators . | . . . . Repair Stations . | . . . . Recycling Units . | . . . . Scanalyzers . | . . . . Garrison Access . | . . . . Terminal Hacks 5 | . . 5 . Record 1 | . . 1 . Prototype ID Bank 2 | . . 2 . Branch Access Points 1 | . . 1 . Locate Traps 1 | . . 1 . Fabricator Hacks . | . . . . Repair Station Hacks . | . . . . Recycling Unit Hacks . | . . . . Scanalyzer . | . . . . Garrison Access Hacks . | . . . . Unauthorized Hacks . | . . . . Terminals . | . . . . Fabricators . | . . . . Repair Stations . | . . . . Recycling Units . | . . . . Scanalyzers . | . . . . Garrison Access . | . . . . Data Cores Recovered . | . . . . Used . | . . . . Hacking Detections 2 | . . 2 . Full Trace Events . | . . . . Feedback Events . | . . . . Feedback Blocked . | . . . . Robot Schematics Acquired . | . . . . Robots Built . | . . . . Matter . | . . . . Time . | . . . . Total Robot Build Rating . | . . . . Part Schematics Acquired . | . . . . Parts Built . | . . . . Matter . | . . . . Time . | . . . . Total Part Build Rating . | . . . . Parts Repaired . | . . . . Time . | . . . . Parts Recycled . | . . . . Recycled Matter . | . . . . Retrieved Matter . | . . . . Retrieved Components . | . . . . Parts Scanalyzed . | . . . . Part Schematics Acquired . | . . . . Parts Damaged . | . . . . Bothacking | -11 -10 -9 -9 ------------ Run | Scr Mat Mat Min Used RIF Installer . | . . . . Robots Hacked . | . . . . Non-combat . | . . . . Combat . | . . . . Robot Hacks Applied . | . . . . Relay Couplers Released . | . . . . Robots Rewired . | . . . . Allies Hacked . | . . . . Hacks Repelled . | . . . . Allies | -11 -10 -9 -9 -------- Run | Scr Mat Mat Min Total Allies . | . . . . Largest Group . | . . . . Highest-Rated Group . | . . . . Highest-Rated Ally . | . . . . Total Orders . | . . . . Ally Attacks . | . . . . Total Damage . | . . . . Kills . | . . . . Allies Corrupted . | . . . . Allies Melted . | . . . . Intel | -11 -10 -9 -9 ------- Run | Scr Mat Mat Min Robot Analysis Total . | . . . . Derelict Logs Recovered . | . . . . Drone Launches . | . . . . Drone Recoveries . | . . . . Exploration | -11 -10 -9 -9 ------------- Run | Scr Mat Mat Min Turns Passed 1020 | 48 154 647 171 Spaces Moved 527 | 34 95 310 88 Core 16 | 7 . 9 . Treads . | . . . . Legs 511 | 27 95 301 88 Wheels . | . . . . Hover . | . . . . Flight . | . . . . Fastest Speed 50 | 50 120 120 150 Average Speed 130 | 105 120 129 152 Slowest Speed 210 | 120 120 200 210 Overloaded Moves . | . . . . Propulsion Burnouts . | . . . . Robots Hopped . | . . . . Cave-ins Triggered . | . . . . Exploration Rate (%) 18 | 3 25 37 10 Regions Visited 3 Branch Regions 1 Pre-discovered Areas . | . . . . Known Exits Taken 2 | . 1 1 . Unknown Exits Taken 1 | 1 . . . Scrap Searched . | . . . . Spaces Dug . | . . . . Terrain Destroyed 57 | . . 45 12 Melee . | . . . . Projectile . | . . . . AOE 57 | . . 45 12 Terrain Rammed . | . . . . Walls Destroyed . | . . . . Machines Disabled . | . . . . Actions | -11 -10 -9 -9 --------- Run | Scr Mat Mat Min Total 712 | 46 113 445 108 Wait 25 | . 1 23 1 Move 524 | 33 94 309 88 Hop . | . . . . Pick Up 30 | 7 5 18 . Fast Attach . | . . . . Attach 18 | 6 1 8 3 Detach . | . . . . Swap 11 | . . 11 . Drop 7 | . . 7 . Fire 97 | . 12 69 16 Melee . | . . . . Ram . | . . . . Kick . | . . . . Crush . | . . . . Escape Stasis . | . . . . Rewire . | . . . . Trap . | . . . . Miscellaneous . | . . . . Route ------- -11/Scrapyard -10/Materials -9/Materials (discovered 3 exits: *Min x2 / Sto) -9/Mines (discovered 1 exit: *Mat) History --------- Turn | Location | Event 26 | -11/Scrapyard | Discovered new exit (range 16) 49 | -11/Scrapyard | Entered Materials 179 | -10/Materials | Discovered new exit (range 11) 202 | -10/Materials | Identified exit to Materials 203 | -10/Materials | Entered another Materials area 203 | -9/Materials | Evolved 2 slots: Propulsion x1, Utility x1 276 | -9/Materials | Identified exit to Mines 276 | -9/Materials | Identified exit to Storage 300 | -9/Materials | Build established: Mutant 519 | -9/Materials | Destroyed 7 combat bots 655 | -9/Materials | Lost 5 parts (3n2w) 850 | -9/Materials | Entered Mines 853 | -9/Mines | Discovered new exit (range 13) 857 | -9/Mines | Core integrity fell below 50% 861 | -9/Mines | Met a Derelict bent on vengeance 918 | -9/Mines | Identified exit to Materials 989 | -9/Mines | Assembled infested the area 1018 | -9/Mines | Core integrity fell below 20% 1021 | -9/Mines | Destroyed by D-53 Grenadier with Mini Grenade Launcher Last Messages --------------- 00997_ Grenade Launcher destroyed. 01000_ Ion Engine destroyed. 01007_ C-30 ARC bursts open, deploying its payload. 01007_ D-53 Grenadier unfolds itself. 01007_ Assault Rifle destroyed. 01007_ Aluminum Leg destroyed. 01008_ The unstable cave ceiling collapses. 01009_ Acquired 71 matter. 01015_ Aluminum Leg destroyed. 01016_ U-05 Engineer lays Concrete. 01017_ Ion Engine destroyed. 01017_ Aluminum Leg destroyed. 01017_ U-05 Engineer lays Concrete. 01018_ The unstable cave ceiling collapses. 01018_ U-05 Engineer lays Concrete. 01019_ The unstable cave ceiling collapses. 01019_ U-05 Engineer destroyed. 01021_ Aluminum Leg destroyed. 01021_ R-06 Scavenger destroyed. 01021_ K-01 Serf destroyed. Map ----- +----------------------------------------------------+ | ????????????? ??????????????? | | ????????????? ??????????????? | | ????????????? % ??????????????? | | ????????????# ???????????????? | | ???????????? ???????????????? | | ???????????? ???????????????? | | ???????????? ????????????????? | | ????#??????? ?#??????????????? | | ???????????## #????????????????? | | ????????????# #????????????????? | | ??#?????????# ##?#?????????????? | | ??#?????????# #???????????????? | | ????????????# #???????????????? | | ?????????#??# ##??????????????? | | ????????#???# #???????????????? | | ??????#??#### #???????????????? | | ??????#### ##???????????????? | | ????### #???????????????? | | ???## d d #???????????????? | | ???# #?????????#?????? | | ??## #????#???#??????? | | ??# ###???????????????? | | ??# #?????????????????? | | ??# ###?????????#???????? | | ??# #???#??????????????? | | #?# @ ##??#???#???????????? | | ??## [ = #??????????????????? | | ??## =% #####???#????????????? | | ???## %*= #???????#????????? | | ???### =#### #????????????????? | | ????## #### #????????????????? | | ????# ### ##???????????????? | | ???### ### ###?????? ??????? | | ?????##### ##????????????? | | #???????## < #????????????? | | ???????#?## ##??????????? | | ??????????## #### #???????????? | | ???????#???###????# #???????????? | | ???????#??????#????##???????????? | | #????????#??#???????????????????? | | ????#???????????????????????????? | | ????????????????????????????????? | | ????????????????????????????????? | | | | | | | | | | | | | | | +----------------------------------------------------+ Best States ------------- Heat Dissipation 28 Energy Generation 10 Energy Capacity 250 Matter Stores 300 Matter Capacity 300 Sight Range 16 Terrain Scan Range 14 Terrain Scan Density 10 Evasion (%) 40 Item Schematics ----------------- None Robot Schematics ------------------ None Fabricated ------------ Nothing Alien Tech Used ----------------- None Achievements -------------- None Challenges ------------ None Game ------ Seed BehemothWeaponRay Manual? 0 Play Time 00:16:08 Cumulative 14.3 hours Start 2020.09.19 @ 08:52:24 End 2020.09.19 @ 09:07:09 Sessions 1 Manual Loads 0 Difficulty Rogue Special Mode None Game No. 27 Rogue 27 Adventurer 0 Explorer 0 Win Type - Total 0 Types 0/0/0/0/0/0/0/0/0 Lore% 18 Gallery% 23 Achievement% 17 Wizard Run 0 Options --------- ASCII 0 Keyboard 0 Movement Mouse Keybinds 0 Fullscreen 1 Font 18/SmallcapsGlow Map View 76x50 Tactical HUD 1 Map Filters NONE Filters NONE Steam 1 RUN: 425fdfc2-3539-4360-a502-c9d3e6d56a73